[Event "*** SCC Grand Prix: Titled Tuesday Blitz"]
[Site "Chess.com"]
[Date "2020.06.23"]
[Round "1"]
[White "GelmanAlexander"]
[Black "IgotJinxed"]
[Result "1-0"]
[WhiteElo "2542"]
[BlackElo "2174"]
[TimeControl "180+1"]
[EndTime "10:06:02 PDT"]
[Termination "GelmanAlexander won by resignation"]

1. c4 {[%clk 0:02:57.8]} 1... Nf6 {[%clk 0:02:57.9]} 2. Nf3 {[%clk 0:02:57.2]}
2... g6 {[%clk 0:02:57.3]} 3. e3 {[%clk 0:02:57]} 3... Bg7 {[%clk 0:02:57]} 4.
Be2 {[%clk 0:02:54.5]} 4... O-O {[%clk 0:02:54.8]} 5. O-O {[%clk 0:02:53.9]}
5... c5 {[%clk 0:02:53.3]} 6. a3 {[%clk 0:02:53.1]} 6... Nc6 {[%clk 0:02:45.3]}
7. d3 {[%clk 0:02:53]} 7... a6 {[%clk 0:02:43.9]} 8. Nc3 {[%clk 0:02:51.3]} 8...
Rb8 {[%clk 0:02:43.9]} 9. Rb1 {[%clk 0:02:41.7]} 9... b5 {[%clk 0:02:42.5]} 10.
cxb5 {[%clk 0:02:42]} 10... axb5 {[%clk 0:02:43.1]} 11. b4 {[%clk 0:02:42.6]}
11... cxb4 {[%clk 0:02:35.2]} 12. axb4 {[%clk 0:02:43.5]} 12... d6 {[%clk
0:02:14.8]} 13. d4 {[%clk 0:02:42.8]} 13... Bf5 {[%clk 0:02:14.2]} 14. Rb3
{[%clk 0:02:42.7]} 14... Ne4 {[%clk 0:01:37.5]} 15. Nxb5 {[%clk 0:02:36.1]}
15... Qd7 {[%clk 0:01:33.8]} 16. d5 {[%clk 0:01:54.3]} 16... Na7 {[%clk
0:01:27.9]} 17. Nbd4 {[%clk 0:01:42.6]} 17... Rfc8 {[%clk 0:01:13.9]} 18. Bb2
{[%clk 0:01:39.9]} 18... Qa4 {[%clk 0:01:00.1]} 19. Nxf5 {[%clk 0:01:25.6]}
19... gxf5 {[%clk 0:00:59.4]} 20. Bxg7 {[%clk 0:01:24.9]} 20... Kxg7 {[%clk
0:00:58.6]} 21. Qa1+ {[%clk 0:01:02.1]} 21... Qxa1 {[%clk 0:00:55.1]} 22. Rxa1
{[%clk 0:01:03]} 22... Nb5 {[%clk 0:00:50.3]} 23. Bxb5 {[%clk 0:00:51.2]} 23...
Rxb5 {[%clk 0:00:51.2]} 24. Nd4 {[%clk 0:00:51.4]} 24... Rxd5 {[%clk 0:00:48.7]}
25. b5 {[%clk 0:00:51.8]} 25... Rc3 {[%clk 0:00:43.9]} 26. Rxc3 {[%clk
0:00:43.5]} 26... Nxc3 {[%clk 0:00:44.8]} 27. b6 {[%clk 0:00:44.4]} 1-0

[Event "*** SCC Grand Prix: Titled Tuesday Blitz"]
[Site "Chess.com"]
[Date "2020.06.23"]
[Round "1"]
[White "TST2014"]
[Black "chesslh19"]
[Result "1-0"]
[WhiteElo "2517"]
[BlackElo "2121"]
[TimeControl "180+1"]
[EndTime "10:06:02 PDT"]
[Termination "TST2014 won by resignation"]

1. d4 {[%clk 0:02:58.8]} 1... Nf6 {[%clk 0:02:49.2]} 2. c4 {[%clk 0:02:56.9]}
2... e6 {[%clk 0:02:48.5]} 3. Nf3 {[%clk 0:02:56.4]} 3... d5 {[%clk 0:02:47.7]}
4. Nc3 {[%clk 0:02:56]} 4... c5 {[%clk 0:02:47.4]} 5. cxd5 {[%clk 0:02:55.6]}
5... cxd4 {[%clk 0:02:47.4]} 6. Qa4+ {[%clk 0:02:53.6]} 6... Bd7 {[%clk
0:02:46.9]} 7. Qxd4 {[%clk 0:02:53.4]} 7... exd5 {[%clk 0:02:47.1]} 8. Nxd5
{[%clk 0:02:43]} 8... Qa5+ {[%clk 0:02:46]} 9. Nc3 {[%clk 0:02:35.6]} 9... Nc6
{[%clk 0:02:46.1]} 10. Qc4 {[%clk 0:01:58.5]} 10... Bb4 {[%clk 0:00:45]} 11. Bd2
{[%clk 0:01:48.8]} 11... O-O {[%clk 0:00:41.5]} 12. e3 {[%clk 0:01:38.4]} 12...
Be6 {[%clk 0:00:38]} 13. Qb5 {[%clk 0:01:36.8]} 13... Rfd8 {[%clk 0:00:24.5]}
14. Qxa5 {[%clk 0:01:30]} 14... Nxa5 {[%clk 0:00:23.9]} 15. Nd4 {[%clk
0:01:21.6]} 15... Bc4 {[%clk 0:00:16.6]} 16. a3 {[%clk 0:01:16.8]} 16... Bxc3
{[%clk 0:00:12.8]} 17. Bxc3 {[%clk 0:01:16.2]} 17... Bxf1 {[%clk 0:00:12.9]} 18.
Bxa5 {[%clk 0:01:13.9]} 18... b6 {[%clk 0:00:13.1]} 19. Kxf1 {[%clk 0:01:04.2]}
19... bxa5 {[%clk 0:00:12.8]} 20. Ke2 {[%clk 0:01:02]} 20... g6 {[%clk
0:00:11.9]} 21. Rac1 {[%clk 0:00:57.7]} 21... Rac8 {[%clk 0:00:11.3]} 22. Nc6
{[%clk 0:00:55.4]} 22... Re8 {[%clk 0:00:04.9]} 23. Ne7+ {[%clk 0:00:54.8]} 1-0

[Event "*** SCC Grand Prix: Titled Tuesday Blitz"]
[Site "Chess.com"]
[Date "2020.06.23"]
[Round "1"]
[White "louis198"]
[Black "Carolina-moon"]
[Result "1-0"]
[WhiteElo "2502"]
[BlackElo "2031"]
[TimeControl "180+1"]
[EndTime "10:06:04 PDT"]
[Termination "louis198 won on time"]

1. d4 {[%clk 0:03:00.9]} 1... f5 {[%clk 0:02:59.5]} 2. Bf4 {[%clk 0:03:00.5]}
2... Nf6 {[%clk 0:02:59.4]} 3. e3 {[%clk 0:03:00.9]} 3... e6 {[%clk 0:02:59.6]}
4. h3 {[%clk 0:02:54.4]} 4... b6 {[%clk 0:02:45.6]} 5. Nf3 {[%clk 0:02:53.1]}
5... Bb7 {[%clk 0:02:45]} 6. Nbd2 {[%clk 0:02:52.5]} 6... Be7 {[%clk 0:02:36.2]}
7. a4 {[%clk 0:02:51.6]} 7... a5 {[%clk 0:02:34.4]} 8. Bc4 {[%clk 0:02:50.9]}
8... d5 {[%clk 0:02:31.8]} 9. Bd3 {[%clk 0:02:50]} 9... O-O {[%clk 0:02:29.6]}
10. O-O {[%clk 0:02:49.7]} 10... h6 {[%clk 0:02:12]} 11. c4 {[%clk 0:02:48.7]}
11... Nbd7 {[%clk 0:01:55.4]} 12. cxd5 {[%clk 0:02:47]} 12... Bxd5 {[%clk
0:01:44]} 13. Rc1 {[%clk 0:02:46.2]} 13... Bd6 {[%clk 0:01:39.1]} 14. Ne5 {[%clk
0:02:36]} 14... Bxe5 {[%clk 0:01:34.9]} 15. Bxe5 {[%clk 0:02:30.4]} 15... Nxe5
{[%clk 0:01:30.8]} 16. dxe5 {[%clk 0:02:30.6]} 16... Ne4 {[%clk 0:01:28.9]} 17.
Nxe4 {[%clk 0:02:26]} 17... fxe4 {[%clk 0:01:24.3]} 18. Bb5 {[%clk 0:02:26]}
18... Rc8 {[%clk 0:01:12.6]} 19. Bc6 {[%clk 0:02:23.1]} 19... Rf5 {[%clk
0:00:55.2]} 20. Qd4 {[%clk 0:01:42.6]} 20... Bxc6 {[%clk 0:00:20.3]} 21. Rxc6
{[%clk 0:01:43.5]} 21... Qd5 {[%clk 0:00:13.5]} 22. Qxd5 {[%clk 0:01:38]} 22...
exd5 {[%clk 0:00:14.2]} 23. e6 {[%clk 0:01:38.8]} 23... Re5 {[%clk 0:00:12.9]}
24. Rfc1 {[%clk 0:01:35.8]} 24... Re8 {[%clk 0:00:11.3]} 25. Rxc7 {[%clk
0:01:36]} 25... R8xe6 {[%clk 0:00:10.4]} 26. Rd7 {[%clk 0:01:36]} 26... Rf6
{[%clk 0:00:08.7]} 27. Rcc7 {[%clk 0:01:32.5]} 27... Rg5 {[%clk 0:00:08.3]} 28.
h4 {[%clk 0:01:22.1]} 28... Rg4 {[%clk 0:00:07]} 29. g3 {[%clk 0:01:21.9]} 29...
h5 {[%clk 0:00:06]} 30. Rxd5 {[%clk 0:01:19.7]} 1-0

[Event "*** SCC Grand Prix: Titled Tuesday Blitz"]
[Site "Chess.com"]
[Date "2020.06.23"]
[Round "1"]
[White "rynos0411"]
[Black "Leonid_Starozhilov"]
[Result "0-1"]
[WhiteElo "2377"]
[BlackElo "2722"]
[TimeControl "180+1"]
[EndTime "10:06:07 PDT"]
[Termination "Leonid_Starozhilov won on time"]

1. d4 {[%clk 0:02:58.5]} 1... Nf6 {[%clk 0:03:00.3]} 2. c4 {[%clk 0:02:57.5]}
2... g6 {[%clk 0:03:00.7]} 3. Nc3 {[%clk 0:02:56.4]} 3... Bg7 {[%clk 0:03:00.9]}
4. e4 {[%clk 0:02:56.1]} 4... d6 {[%clk 0:03:01.5]} 5. h3 {[%clk 0:02:56.5]}
5... O-O {[%clk 0:03:00.8]} 6. Be3 {[%clk 0:02:57]} 6... e5 {[%clk 0:03:01.2]}
7. d5 {[%clk 0:02:54.6]} 7... Na6 {[%clk 0:03:00.4]} 8. Nf3 {[%clk 0:02:53.2]}
8... Nh5 {[%clk 0:03:00.1]} 9. Nd2 {[%clk 0:02:50.9]} 9... Qe8 {[%clk
0:02:50.9]} 10. Be2 {[%clk 0:02:44.7]} 10... Nf4 {[%clk 0:02:49.7]} 11. Bf3
{[%clk 0:02:40.3]} 11... Nd3+ {[%clk 0:02:43.4]} 12. Ke2 {[%clk 0:02:39.9]}
12... Nac5 {[%clk 0:02:37.7]} 13. Bxc5 {[%clk 0:02:30.6]} 13... Nxc5 {[%clk
0:02:37]} 14. b4 {[%clk 0:02:30.6]} 14... Nd7 {[%clk 0:02:35.1]} 15. g4 {[%clk
0:02:29.1]} 15... a5 {[%clk 0:02:30.5]} 16. a3 {[%clk 0:02:28.4]} 16... f5
{[%clk 0:02:27.2]} 17. gxf5 {[%clk 0:02:27.2]} 17... gxf5 {[%clk 0:02:27.2]} 18.
Qc2 {[%clk 0:02:20.8]} 18... Nf6 {[%clk 0:02:18.4]} 19. c5 {[%clk 0:02:09.9]}
19... Kh8 {[%clk 0:02:16.4]} 20. Qd3 {[%clk 0:01:42.8]} 20... Nh5 {[%clk
0:02:10.1]} 21. Qb5 {[%clk 0:01:30.1]} 21... Nf4+ {[%clk 0:02:08.9]} 22. Kd1
{[%clk 0:01:22.9]} 22... c6 {[%clk 0:02:08]} 23. Qa4 {[%clk 0:01:15.3]} 23...
cxd5 {[%clk 0:02:02.4]} 24. Qxe8 {[%clk 0:01:16.2]} 24... Rxe8 {[%clk
0:02:02.9]} 25. cxd6 {[%clk 0:01:00.7]} 25... dxe4 {[%clk 0:01:57.8]} 26. Be2
{[%clk 0:00:59.5]} 26... Rd8 {[%clk 0:01:52.4]} 27. Kc2 {[%clk 0:00:53.1]} 27...
Rxd6 {[%clk 0:01:49.2]} 28. Nc4 {[%clk 0:00:52.1]} 28... Rc6 {[%clk 0:01:36.9]}
29. Bf1 {[%clk 0:00:36.1]} 29... axb4 {[%clk 0:01:22.5]} 30. Nb5 {[%clk
0:00:12.5]} 30... Be6 {[%clk 0:01:22.2]} 31. Kb3 {[%clk 0:00:12.9]} 31... Rac8
{[%clk 0:01:13.1]} 32. Rc1 {[%clk 0:00:10.6]} 32... Nd3 {[%clk 0:01:13.4]} 33.
Bxd3 {[%clk 0:00:02.2]} 33... exd3 {[%clk 0:01:14.3]} 0-1

[Event "*** SCC Grand Prix: Titled Tuesday Blitz"]
[Site "Chess.com"]
[Date "2020.06.23"]
[Round "1"]
[White "SPEEDSKATER"]
[Black "argentum049"]
[Result "1/2-1/2"]
[WhiteElo "2775"]
[BlackElo "2442"]
[TimeControl "180+1"]
[EndTime "10:06:17 PDT"]
[Termination "Game drawn by repetition"]

1. d4 {[%clk 0:03:00.9]} 1... Nf6 {[%clk 0:02:58.2]} 2. c4 {[%clk 0:02:59.1]}
2... g6 {[%clk 0:02:58.5]} 3. Nc3 {[%clk 0:02:56.3]} 3... Bg7 {[%clk 0:02:58.9]}
4. e4 {[%clk 0:02:55.7]} 4... O-O {[%clk 0:02:58.7]} 5. Nf3 {[%clk 0:02:56]}
5... d6 {[%clk 0:02:58.1]} 6. Be2 {[%clk 0:02:56.4]} 6... e5 {[%clk 0:02:56.9]}
7. O-O {[%clk 0:02:56.7]} 7... Nbd7 {[%clk 0:02:57]} 8. Be3 {[%clk 0:02:56.1]}
8... Re8 {[%clk 0:02:55.5]} 9. dxe5 {[%clk 0:02:49]} 9... Nxe5 {[%clk
0:02:53.7]} 10. Nxe5 {[%clk 0:02:34]} 10... Rxe5 {[%clk 0:02:46.5]} 11. f3
{[%clk 0:02:30.6]} 11... Bd7 {[%clk 0:02:27.3]} 12. Qd2 {[%clk 0:02:26.9]} 12...
Bc6 {[%clk 0:02:27.1]} 13. Rfd1 {[%clk 0:02:21.2]} 13... Qe7 {[%clk 0:02:23]}
14. Bd4 {[%clk 0:02:15.7]} 14... Rh5 {[%clk 0:02:19.2]} 15. Rac1 {[%clk
0:02:12.8]} 15... Nd7 {[%clk 0:02:18.3]} 16. Bf2 {[%clk 0:02:01.7]} 16... a5
{[%clk 0:02:08.6]} 17. Nd5 {[%clk 0:01:52]} 17... Bxd5 {[%clk 0:02:07.3]} 18.
cxd5 {[%clk 0:01:52.9]} 18... Nc5 {[%clk 0:02:07.1]} 19. Rc4 {[%clk 0:01:42.5]}
19... b6 {[%clk 0:01:38]} 20. Rdc1 {[%clk 0:01:31.7]} 20... Bh6 {[%clk
0:01:27.7]} 21. Be3 {[%clk 0:01:24.5]} 21... Qh4 {[%clk 0:01:06.5]} 22. h3
{[%clk 0:01:24.4]} 22... Bxe3+ {[%clk 0:01:06.9]} 23. Qxe3 {[%clk 0:01:25.3]}
23... Rg5 {[%clk 0:01:07.5]} 24. Kf1 {[%clk 0:01:19.9]} 24... Re8 {[%clk
0:01:04.2]} 25. Qf2 {[%clk 0:01:18.1]} 25... Qf4 {[%clk 0:01:02.8]} 26. h4
{[%clk 0:01:08.2]} 26... Rg3 {[%clk 0:00:57.7]} 27. e5 {[%clk 0:00:54.1]} 27...
Qxe5 {[%clk 0:00:48.7]} 28. R1c3 {[%clk 0:00:53.3]} 28... Qxe2+ {[%clk 0:00:43]}
29. Qxe2 {[%clk 0:00:52.3]} 29... Rxe2 {[%clk 0:00:43.6]} 30. Kxe2 {[%clk
0:00:53.2]} 30... Rxg2+ {[%clk 0:00:43.9]} 31. Ke3 {[%clk 0:00:52]} 31... Rxb2
{[%clk 0:00:26.2]} 32. Rc2 {[%clk 0:00:52.1]} 32... Rb1 {[%clk 0:00:26.3]} 33.
Rc1 {[%clk 0:00:52.3]} 33... Rb2 {[%clk 0:00:25.7]} 34. R1c2 {[%clk 0:00:52.4]}
34... Rb1 {[%clk 0:00:25.8]} 35. Rc1 {[%clk 0:00:52.8]} 35... Rb2 {[%clk
0:00:26.1]} 36. R4c2 {[%clk 0:00:51.7]} 36... Rb4 {[%clk 0:00:25.5]} 37. Rc4
{[%clk 0:00:51.6]} 37... Rb2 {[%clk 0:00:25.5]} 1/2-1/2

[Event "*** SCC Grand Prix: Titled Tuesday Blitz"]
[Site "Chess.com"]
[Date "2020.06.23"]
[Round "1"]
[White "Ranindu2003"]
[Black "metalbattler"]
[Result "1-0"]
[WhiteElo "2492"]
[BlackElo "2006"]
[TimeControl "180+1"]
[EndTime "10:06:21 PDT"]
[Termination "Ranindu2003 won by checkmate"]

1. e4 {[%clk 0:03:00.2]} 1... c5 {[%clk 0:02:55.2]} 2. Nf3 {[%clk 0:02:59.9]}
2... d6 {[%clk 0:02:55.7]} 3. d4 {[%clk 0:02:59.7]} 3... cxd4 {[%clk 0:02:56.6]}
4. Nxd4 {[%clk 0:03:00.6]} 4... Nf6 {[%clk 0:02:57.5]} 5. Nc3 {[%clk 0:03:01.1]}
5... a6 {[%clk 0:02:58]} 6. Be3 {[%clk 0:03:01.4]} 6... e5 {[%clk 0:02:58.1]} 7.
Nb3 {[%clk 0:03:01.2]} 7... Be6 {[%clk 0:02:58.6]} 8. f3 {[%clk 0:03:00.5]} 8...
Nbd7 {[%clk 0:02:59.2]} 9. Qd2 {[%clk 0:02:59.2]} 9... h5 {[%clk 0:02:59.6]} 10.
Nd5 {[%clk 0:02:58.9]} 10... Bxd5 {[%clk 0:02:58.5]} 11. exd5 {[%clk 0:02:59.8]}
11... g6 {[%clk 0:02:59.2]} 12. Be2 {[%clk 0:02:59.7]} 12... Bg7 {[%clk
0:02:59.5]} 13. O-O {[%clk 0:03:00.4]} 13... Qc7 {[%clk 0:02:53.2]} 14. c4
{[%clk 0:02:52.7]} 14... O-O {[%clk 0:02:49.4]} 15. Rac1 {[%clk 0:02:48]} 15...
Rad8 {[%clk 0:02:40.5]} 16. Na5 {[%clk 0:02:41.9]} 16... e4 {[%clk 0:02:28]} 17.
f4 {[%clk 0:02:40.2]} 17... Ng4 {[%clk 0:02:20.3]} 18. Bxg4 {[%clk 0:02:39.6]}
18... hxg4 {[%clk 0:02:21.2]} 19. b4 {[%clk 0:02:36.5]} 19... Kh7 {[%clk
0:01:53]} 20. Nb3 {[%clk 0:02:33.7]} 20... Rh8 {[%clk 0:01:51.3]} 21. f5 {[%clk
0:02:06.5]} 21... Ne5 {[%clk 0:01:44.8]} 22. Qe2 {[%clk 0:01:47.4]} 22... Qe7
{[%clk 0:01:35.8]} 23. fxg6+ {[%clk 0:01:39.1]} 23... Kxg6 {[%clk 0:01:13.8]}
24. Nd4 {[%clk 0:01:34.6]} 24... Qh4 {[%clk 0:01:05.5]} 25. g3 {[%clk
0:01:15.7]} 25... Qh3 {[%clk 0:01:04.3]} 26. Qc2 {[%clk 0:01:09.9]} 26... Nd3
{[%clk 0:00:34.6]} 27. Rcd1 {[%clk 0:01:08.5]} 27... Rde8 {[%clk 0:00:21.8]} 28.
Rxd3 {[%clk 0:01:05.8]} 28... exd3 {[%clk 0:00:22.7]} 29. Qxd3+ {[%clk
0:01:06.7]} 29... f5 {[%clk 0:00:06.8]} 30. Qxf5# {[%clk 0:01:06.1]} 1-0

[Event "*** SCC Grand Prix: Titled Tuesday Blitz"]
[Site "Chess.com"]
[Date "2020.06.23"]
[Round "1"]
[White "TheSodabread"]
[Black "2346PL"]
[Result "0-1"]
[WhiteElo "1904"]
[BlackElo "2475"]
[TimeControl "180+1"]
[EndTime "10:06:22 PDT"]
[Termination "2346PL won on time"]

1. d4 {[%clk 0:02:59.6]} 1... f5 {[%clk 0:02:58.6]} 2. Qd3 {[%clk 0:02:57.4]}
2... d5 {[%clk 0:02:57]} 3. g4 {[%clk 0:02:56.4]} 3... e6 {[%clk 0:02:56.1]} 4.
gxf5 {[%clk 0:02:52.1]} 4... exf5 {[%clk 0:02:56]} 5. Bf4 {[%clk 0:02:47.9]}
5... Bd6 {[%clk 0:02:52.6]} 6. Bxd6 {[%clk 0:02:46.5]} 6... Qxd6 {[%clk
0:02:52.3]} 7. Nd2 {[%clk 0:02:45.5]} 7... Nf6 {[%clk 0:02:51.2]} 8. O-O-O
{[%clk 0:02:41]} 8... Nc6 {[%clk 0:02:45.7]} 9. f3 {[%clk 0:02:31.5]} 9... O-O
{[%clk 0:02:43.2]} 10. Bg2 {[%clk 0:02:29.2]} 10... a5 {[%clk 0:02:21.7]} 11. e4
{[%clk 0:02:27.1]} 11... Nb4 {[%clk 0:02:19.7]} 12. Qb3 {[%clk 0:02:24.9]} 12...
a4 {[%clk 0:02:19.4]} 13. Qa3 {[%clk 0:02:23.5]} 13... dxe4 {[%clk 0:02:16]} 14.
fxe4 {[%clk 0:02:20.1]} 14... fxe4 {[%clk 0:02:15.1]} 15. Ne2 {[%clk 0:01:58]}
15... Bg4 {[%clk 0:02:11.8]} 16. Nc4 {[%clk 0:01:51.6]} 16... Qe7 {[%clk
0:02:08.2]} 17. Rhe1 {[%clk 0:01:49.5]} 17... Rfe8 {[%clk 0:01:50.6]} 18. Ne5
{[%clk 0:01:43.8]} 18... Bh5 {[%clk 0:01:50.7]} 19. Kb1 {[%clk 0:01:33]} 19...
c6 {[%clk 0:01:50.2]} 20. Rd2 {[%clk 0:01:08.7]} 20... Nbd5 {[%clk 0:01:50.1]}
21. Ng3 {[%clk 0:01:00.3]} 21... Qxa3 {[%clk 0:01:48.9]} 22. bxa3 {[%clk
0:01:00]} 22... Bg6 {[%clk 0:01:48.1]} 23. Nxg6 {[%clk 0:00:56.9]} 23... hxg6
{[%clk 0:01:47.9]} 24. c4 {[%clk 0:00:50.1]} 24... Nf4 {[%clk 0:01:39.7]} 25.
Bxe4 {[%clk 0:00:43.1]} 25... Re7 {[%clk 0:01:38]} 26. Rf2 {[%clk 0:00:27.6]}
26... Nd3 {[%clk 0:01:37.3]} 27. Rxf6 {[%clk 0:00:21.1]} 27... gxf6 {[%clk
0:01:26.6]} 28. Bd5+ {[%clk 0:00:20.9]} 28... Kf8 {[%clk 0:01:26.3]} 29. Rxe7
{[%clk 0:00:15.4]} 29... Kxe7 {[%clk 0:01:25.7]} 30. Be4 {[%clk 0:00:16.3]}
30... Nf4 {[%clk 0:01:23.8]} 31. Kc2 {[%clk 0:00:15.4]} 31... Rh8 {[%clk
0:01:19.7]} 32. Nf1 {[%clk 0:00:14.6]} 32... Rh3 {[%clk 0:01:19.5]} 33. Kb2
{[%clk 0:00:13.3]} 33... f5 {[%clk 0:01:16.8]} 34. Bc2 {[%clk 0:00:10.5]} 34...
Rf3 {[%clk 0:01:13.3]} 35. Nd2 {[%clk 0:00:06.7]} 35... Rf2 {[%clk 0:01:13.4]}
36. Kc3 {[%clk 0:00:06.3]} 36... Ne2+ {[%clk 0:01:10.6]} 37. Kd3 {[%clk
0:00:06.1]} 37... Nc1+ {[%clk 0:01:10.9]} 0-1

[Event "*** SCC Grand Prix: Titled Tuesday Blitz"]
[Site "Chess.com"]
[Date "2020.06.23"]
[Round "1"]
[White "GukeshDommaraju"]
[Black "TokChess"]
[Result "1-0"]
[WhiteElo "2710"]
[BlackElo "2366"]
[TimeControl "180+1"]
[EndTime "10:06:23 PDT"]
[Termination "GukeshDommaraju won by checkmate"]

1. c4 {[%clk 0:03:00.2]} 1... Nf6 {[%clk 0:02:59]} 2. Nc3 {[%clk 0:02:59.1]}
2... d5 {[%clk 0:02:58.4]} 3. cxd5 {[%clk 0:02:58.8]} 3... Nxd5 {[%clk 0:02:59]}
4. Nf3 {[%clk 0:02:55.7]} 4... g6 {[%clk 0:02:58.3]} 5. e4 {[%clk 0:02:54.1]}
5... Nxc3 {[%clk 0:02:57.9]} 6. bxc3 {[%clk 0:02:55]} 6... Bg7 {[%clk
0:02:57.9]} 7. d4 {[%clk 0:02:55.6]} 7... O-O {[%clk 0:02:57.5]} 8. Be3 {[%clk
0:02:55]} 8... Nc6 {[%clk 0:02:57.2]} 9. Be2 {[%clk 0:02:45.3]} 9... b6 {[%clk
0:02:41.2]} 10. O-O {[%clk 0:02:43.1]} 10... Bb7 {[%clk 0:02:41.1]} 11. Qc2
{[%clk 0:02:38.1]} 11... Na5 {[%clk 0:02:39.4]} 12. Rfd1 {[%clk 0:02:33.3]}
12... e6 {[%clk 0:02:37.9]} 13. Rab1 {[%clk 0:02:31.1]} 13... Qc8 {[%clk
0:02:30.8]} 14. c4 {[%clk 0:02:29.7]} 14... c5 {[%clk 0:02:17]} 15. dxc5 {[%clk
0:02:26.8]} 15... bxc5 {[%clk 0:02:15.2]} 16. Rb5 {[%clk 0:02:26.2]} 16... Nc6
{[%clk 0:02:08.5]} 17. Bxc5 {[%clk 0:02:26]} 17... Rd8 {[%clk 0:02:07]} 18.
Rxd8+ {[%clk 0:02:25.1]} 18... Nxd8 {[%clk 0:01:58.7]} 19. Be3 {[%clk
0:02:24.8]} 19... Nc6 {[%clk 0:01:43.7]} 20. h4 {[%clk 0:02:19.5]} 20... Ba6
{[%clk 0:01:32.1]} 21. Rb1 {[%clk 0:02:02.6]} 21... Qc7 {[%clk 0:01:17.1]} 22.
h5 {[%clk 0:02:00.3]} 22... gxh5 {[%clk 0:01:09]} 23. c5 {[%clk 0:01:51.8]}
23... Bxe2 {[%clk 0:01:07.9]} 24. Qxe2 {[%clk 0:01:52.7]} 24... Rc8 {[%clk
0:01:04.5]} 25. Qa6 {[%clk 0:01:48.8]} 25... Rb8 {[%clk 0:00:56]} 26. Rxb8+
{[%clk 0:01:48.5]} 26... Nxb8 {[%clk 0:00:56.2]} 27. Qb5 {[%clk 0:01:48.3]}
27... Nc6 {[%clk 0:00:55.4]} 28. g3 {[%clk 0:01:45.9]} 28... Bf6 {[%clk
0:00:53.8]} 29. Kg2 {[%clk 0:01:39.3]} 29... Kg7 {[%clk 0:00:52.9]} 30. Bf4
{[%clk 0:01:36.6]} 30... Qc8 {[%clk 0:00:47.3]} 31. Qd3 {[%clk 0:01:20.3]} 31...
e5 {[%clk 0:00:40.3]} 32. Be3 {[%clk 0:01:18.4]} 32... Ne7 {[%clk 0:00:19.2]}
33. Qd6 {[%clk 0:01:15.3]} 33... Ng6 {[%clk 0:00:16.6]} 34. Bh6+ {[%clk
0:01:10.9]} 34... Kxh6 {[%clk 0:00:15.5]} 35. Qxf6 {[%clk 0:01:11]} 35... Qxc5
{[%clk 0:00:13.2]} 36. Ng5 {[%clk 0:01:11.2]} 36... h4 {[%clk 0:00:05.9]} 37.
Nxf7+ {[%clk 0:01:11.3]} 37... Kh5 {[%clk 0:00:05.9]} 38. Qf5# {[%clk
0:01:11.6]} 1-0

[Event "*** SCC Grand Prix: Titled Tuesday Blitz"]
[Site "Chess.com"]
[Date "2020.06.23"]
[Round "1"]
[White "bgfbfbgfbgfgf"]
[Black "UKR_Master"]
[Result "1-0"]
[WhiteElo "2637"]
[BlackElo "2312"]
[TimeControl "180+1"]
[EndTime "10:06:24 PDT"]
[Termination "bgfbfbgfbgfgf won by resignation"]

1. e4 {[%clk 0:02:58.8]} 1... c5 {[%clk 0:02:59.4]} 2. Nf3 {[%clk 0:02:55.4]}
2... d6 {[%clk 0:02:59.6]} 3. d4 {[%clk 0:02:55.2]} 3... cxd4 {[%clk 0:03:00.5]}
4. Nxd4 {[%clk 0:02:55.9]} 4... Nf6 {[%clk 0:03:01.1]} 5. Nc3 {[%clk 0:02:51.8]}
5... e5 {[%clk 0:03:00.4]} 6. Nf5 {[%clk 0:02:43.1]} 6... Nc6 {[%clk 0:02:56]}
7. Bg5 {[%clk 0:02:37.7]} 7... Bxf5 {[%clk 0:02:38.2]} 8. exf5 {[%clk 0:02:36]}
8... h6 {[%clk 0:02:38.5]} 9. Bxf6 {[%clk 0:02:34.7]} 9... Qxf6 {[%clk
0:02:39.4]} 10. Nd5 {[%clk 0:02:34.4]} 10... Qd8 {[%clk 0:02:39.5]} 11. f6
{[%clk 0:02:21.1]} 11... gxf6 {[%clk 0:02:36.6]} 12. Qh5 {[%clk 0:02:13.8]}
12... Qa5+ {[%clk 0:02:25.4]} 13. Nc3 {[%clk 0:02:10.5]} 13... d5 {[%clk
0:02:21.9]} 14. O-O-O {[%clk 0:01:52.7]} 14... Rd8 {[%clk 0:02:12.9]} 15. Bb5
{[%clk 0:01:46.9]} 15... d4 {[%clk 0:02:08.4]} 16. Bc4 {[%clk 0:01:45]} 16...
Qc7 {[%clk 0:01:25.7]} 17. Ne4 {[%clk 0:01:22.5]} 17... Bg7 {[%clk 0:01:24.4]}
18. Ng3 {[%clk 0:01:15.5]} 18... Nb4 {[%clk 0:01:14.4]} 19. Bb3 {[%clk 0:01:12]}
19... Rc8 {[%clk 0:00:55.5]} 20. Rd2 {[%clk 0:01:08.9]} 20... b5 {[%clk
0:00:53.3]} 21. Nf5 {[%clk 0:01:04.2]} 21... Kf8 {[%clk 0:00:51.5]} 22. Nd6
{[%clk 0:00:59.6]} 22... Rb8 {[%clk 0:00:31]} 23. Nxf7 {[%clk 0:00:58.6]} 23...
Rh7 {[%clk 0:00:31.5]} 24. Qg6 {[%clk 0:00:57.4]} 24... a5 {[%clk 0:00:28.1]}
25. Qxh7 {[%clk 0:00:53.3]} 25... a4 {[%clk 0:00:28.5]} 26. Nxh6 {[%clk
0:00:52]} 26... axb3 {[%clk 0:00:07.6]} 27. Qg8+ {[%clk 0:00:51.8]} 27... Ke7
{[%clk 0:00:08.1]} 28. Qxg7+ {[%clk 0:00:52.7]} 28... Kd6 {[%clk 0:00:08.4]} 29.
Qxc7+ {[%clk 0:00:51.3]} 29... Kxc7 {[%clk 0:00:08.7]} 30. axb3 {[%clk
0:00:52.1]} 30... Ra8 {[%clk 0:00:08.5]} 31. Kb1 {[%clk 0:00:52.3]} 1-0